[Event "Titled Tuesday Blitz March 22 Late 2022"]
[White "Zhou, Qiyu"]
[Black "Jeet, Jain"]
[WhiteFideId "505161"]
[BlackFideId "5073022"]
[WhiteElo "1925"]
[BlackElo "2085"]
[Result "0-1"]
[Round "03"]
[TimeControl "180+1"]
[Date "2022.03.22"]
[WhiteClock "0:00:01"]
[BlackClock "0:00:33"]

1. e4 {[%clk 0:03:00]}  c6 {[%clk 0:02:59]} 2. d4 {[%clk 0:03:00]}  d5 {[%clk 0:03:00]} 3. e5 {[%clk 0:03:01]}  Bf5 {[%clk 0:02:59]} 4. Nf3 {[%clk 0:03:01]}  e6 {[%clk 0:02:58]} 5. Be2 {[%clk 0:03:01]}  c5 {[%clk 0:02:58]} 6. Be3 {[%clk 0:03:00]}  Nc6 {[%clk 0:02:57]} 7. O-O {[%clk 0:02:51]}  Qb6 {[%clk 0:02:53]} 8. b3 {[%clk 0:02:45]}  cxd4 {[%clk 0:02:51]} 9. Nxd4 {[%clk 0:02:45]}  Nxd4 {[%clk 0:02:51]} 10. Bxd4 {[%clk 0:02:46]}  Bc5 {[%clk 0:02:51]} 11. Bb2 {[%clk 0:02:34]}  Rc8 {[%clk 0:02:50]} 12. c4 {[%clk 0:02:15]}  Ne7 {[%clk 0:02:47]} 13. Nc3 {[%clk 0:01:46]}  dxc4 {[%clk 0:02:37]} 14. Bxc4 {[%clk 0:01:35]}  O-O {[%clk 0:02:34]} 15. Qe2 {[%clk 0:01:28]}  Qa5 {[%clk 0:02:05]} 16. Ne4 {[%clk 0:01:14]}  Bxe4 {[%clk 0:01:57]} 17. Qxe4 {[%clk 0:01:13]}  Qb6 {[%clk 0:01:52]} 18. Rad1 {[%clk 0:01:05]}  Rfd8 {[%clk 0:01:50]} 19. Qe2 {[%clk 0:00:53]}  Ng6 {[%clk 0:01:44]} 20. g3 {[%clk 0:00:49]}  h6 {[%clk 0:01:41]} 21. Bd3 {[%clk 0:00:48]}  Ne7 {[%clk 0:01:39]} 22. Be4 {[%clk 0:00:46]}  Nc6 {[%clk 0:01:16]} 23. Bb1 {[%clk 0:00:13]}  g6 {[%clk 0:01:12]} 24. Bc1 {[%clk 0:00:09]}  Kg7 {[%clk 0:01:07]} 25. Bb2 {[%clk 0:00:06]}  Bd4 {[%clk 0:01:00]} 26. Bxd4 {[%clk 0:00:03]}  Rxd4 {[%clk 0:01:00]} 27. Qf3 {[%clk 0:00:03]}  Nxe5 {[%clk 0:00:55]} 28. Qe3 {[%clk 0:00:02]}  Nc6 {[%clk 0:00:52]} 29. Rxd4 {[%clk 0:00:01]}  Qxd4 {[%clk 0:00:52]} 30. Qf3 {[%clk 0:00:01]}  Qf6 {[%clk 0:00:49]} 31. Qg2 {[%clk 0:00:01]}  Qb2 {[%clk 0:00:47]} 32. Qe4 {[%clk 0:00:01]}  b6 {[%clk 0:00:44]} 33. h4 {[%clk 0:00:01]}  Qe5 {[%clk 0:00:42]} 34. Qf3 {[%clk 0:00:01]}  Nd4 {[%clk 0:00:42]} 35. Qg2 {[%clk 0:00:01]}  h5 {[%clk 0:00:38]} 36. Kh2 {[%clk 0:00:02]}  Rc3 {[%clk 0:00:36]} 37. Be4 {[%clk 0:00:02]}  Qf6 {[%clk 0:00:35]} 38. Bb7 {[%clk 0:00:02]}  Qe5 {[%clk 0:00:33]} 39. Rd1 {[%clk 0:00:01]}  Nf5 {[%clk 0:00:33]} 40. Rf1 {[%clk 0:00:01]}  Nxh4 {[%clk 0:00:33]} 0-1


[Site "https://www.chess.com"]

[Event "Titled Tuesday Blitz March 22 Late 2022"]
[White "Altman, Joshua"]
[Black "Dolzhykova, Kateryna"]
[WhiteFideId "426210"]
[BlackFideId "14113414"]
[WhiteElo "1945"]
[BlackElo "2184"]
[Result "1-0"]
[Round "04"]
[TimeControl "180+1"]
[Date "2022.03.22"]
[WhiteClock "0:00:55"]
[BlackClock "0:00:10"]

1. d4 {[%clk 0:03:00]}  Nf6 {[%clk 0:02:59]} 2. c4 {[%clk 0:03:01]}  e6 {[%clk 0:02:59]} 3. Nf3 {[%clk 0:03:01]}  d5 {[%clk 0:02:56]} 4. Nc3 {[%clk 0:03:01]}  Bb4 {[%clk 0:02:54]} 5. cxd5 {[%clk 0:03:01]}  exd5 {[%clk 0:02:54]} 6. Bg5 {[%clk 0:03:01]}  c6 {[%clk 0:02:54]} 7. Qc2 {[%clk 0:03:02]}  O-O {[%clk 0:02:54]} 8. e3 {[%clk 0:03:02]}  h6 {[%clk 0:02:55]} 9. Bh4 {[%clk 0:03:02]}  Nbd7 {[%clk 0:02:55]} 10. Bd3 {[%clk 0:03:02]}  Re8 {[%clk 0:02:50]} 11. O-O {[%clk 0:03:01]}  Bxc3 {[%clk 0:02:49]} 12. bxc3 {[%clk 0:03:00]}  Qc7 {[%clk 0:02:47]} 13. Bg3 {[%clk 0:02:59]}  Qd8 {[%clk 0:02:44]} 14. h3 {[%clk 0:02:53]}  Ne4 {[%clk 0:02:44]} 15. Bh2 {[%clk 0:02:50]}  Ndf6 {[%clk 0:02:43]} 16. Rae1 {[%clk 0:02:47]}  Bf5 {[%clk 0:02:42]} 17. Ne5 {[%clk 0:02:44]}  Bh7 {[%clk 0:02:39]} 18. f3 {[%clk 0:02:41]}  Nd6 {[%clk 0:02:39]} 19. Bxh7+ {[%clk 0:02:27]}  Nxh7 {[%clk 0:02:38]} 20. e4 {[%clk 0:02:28]}  Nf6 {[%clk 0:02:37]} 21. c4 {[%clk 0:02:01]}  dxe4 {[%clk 0:02:28]} 22. fxe4 {[%clk 0:01:57]}  Ndxe4 {[%clk 0:02:29]} 23. Rxe4 {[%clk 0:01:49]}  Nxe4 {[%clk 0:02:30]} 24. Qxe4 {[%clk 0:01:47]}  f6 {[%clk 0:02:30]} 25. Qg4 {[%clk 0:01:45]}  fxe5 {[%clk 0:02:22]} 26. Bxe5 {[%clk 0:01:46]}  Qe7 {[%clk 0:02:05]} 27. Rf6 {[%clk 0:01:44]}  Kh7 {[%clk 0:01:17]} 28. Rg6 {[%clk 0:01:18]}  Qxe5 {[%clk 0:00:17]} 29. dxe5 {[%clk 0:01:17]}  Re7 {[%clk 0:00:17]} 30. Re6 {[%clk 0:00:59]}  Rae8 {[%clk 0:00:14]} 31. Qg6+ {[%clk 0:00:57]}  Kg8 {[%clk 0:00:14]} 32. Qxe8+ {[%clk 0:00:56]}  Rxe8 {[%clk 0:00:14]} 33. Rxe8+ {[%clk 0:00:57]}  Kf7 {[%clk 0:00:15]} 34. Rb8 {[%clk 0:00:57]}  b6 {[%clk 0:00:14]} 35. Rb7+ {[%clk 0:00:58]}  Ke6 {[%clk 0:00:15]} 36. Rxa7 {[%clk 0:00:58]}  Kxe5 {[%clk 0:00:13]} 37. Rb7 {[%clk 0:00:55]}  Kd4 {[%clk 0:00:10]} 38. Rxb6 {[%clk 0:00:55]}  Kc5 {[%clk 0:00:11]} 39. Rb7 {[%clk 0:00:53]}  g5 {[%clk 0:00:11]} 40. a4 {[%clk 0:00:53]}  Kxc4 {[%clk 0:00:11]} 41. a5 {[%clk 0:00:53]}  Kd3 {[%clk 0:00:12]} 42. a6 {[%clk 0:00:53]}  c5 {[%clk 0:00:12]} 43. a7 {[%clk 0:00:54]}  c4 {[%clk 0:00:13]} 44. a8=Q {[%clk 0:00:54]}  c3 {[%clk 0:00:14]} 45. Qd8+ {[%clk 0:00:54]}  Kc2 {[%clk 0:00:14]} 46. Rc7 {[%clk 0:00:55]}  g4 {[%clk 0:00:15]} 47. hxg4 {[%clk 0:00:54]}  h5 {[%clk 0:00:15]} 48. gxh5 {[%clk 0:00:54]}  Kb2 {[%clk 0:00:14]} 49. Rxc3 {[%clk 0:00:54]}  Kxc3 {[%clk 0:00:07]} 50. h6 {[%clk 0:00:54]}  Kc4 {[%clk 0:00:08]} 51. h7 {[%clk 0:00:55]}  Kb3 {[%clk 0:00:09]} 52. Qc7 {[%clk 0:00:54]}  Kb4 {[%clk 0:00:08]} 53. h8=Q {[%clk 0:00:54]}  Kb5 {[%clk 0:00:09]} 54. Qhb8+ {[%clk 0:00:54]}  Ka6 {[%clk 0:00:10]} 55. Qca7# {[%clk 0:00:55]} 1-0


[Site "https://www.chess.com"]

[Event "Titled Tuesday Blitz March 22 Late 2022"]
[White "Ansh M Shah"]
[Black "Van den Dikkenberg, Erik"]
[WhiteFideId "25033379"]
[BlackFideId "1005880"]
[WhiteElo "1819"]
[BlackElo "2118"]
[Result "1-0"]
[Round "04"]
[TimeControl "180+1"]
[Date "2022.03.22"]
[WhiteClock "0:02:22"]
[BlackClock "0:02:13"]

1. d4 {[%clk 0:03:00]}  Nf6 {[%clk 0:02:58]} 2. c4 {[%clk 0:03:00]}  g6 {[%clk 0:02:59]} 3. h4 {[%clk 0:03:00]}  h5 {[%clk 0:02:57]} 4. Nc3 {[%clk 0:03:00]}  d6 {[%clk 0:02:58]} 5. e4 {[%clk 0:03:00]}  Bg7 {[%clk 0:02:56]} 6. Be2 {[%clk 0:03:01]}  Bg4 {[%clk 0:02:55]} 7. f3 {[%clk 0:03:00]}  Bd7 {[%clk 0:02:55]} 8. Be3 {[%clk 0:03:01]}  c5 {[%clk 0:02:55]} 9. dxc5 {[%clk 0:03:00]}  dxc5 {[%clk 0:02:53]} 10. Bxc5 {[%clk 0:03:01]}  Na6 {[%clk 0:02:53]} 11. Be3 {[%clk 0:03:00]}  O-O {[%clk 0:02:52]} 12. Nh3 {[%clk 0:03:01]}  Rc8 {[%clk 0:02:48]} 13. Ng5 {[%clk 0:03:00]}  Qc7 {[%clk 0:02:48]} 14. O-O {[%clk 0:02:51]}  e6 {[%clk 0:02:41]} 15. Rc1 {[%clk 0:02:49]}  Bc6 {[%clk 0:02:40]} 16. b3 {[%clk 0:02:47]}  Nh7 {[%clk 0:02:32]} 17. Nxh7 {[%clk 0:02:38]}  Kxh7 {[%clk 0:02:31]} 18. Qe1 {[%clk 0:02:36]}  Rcd8 {[%clk 0:02:27]} 19. Qf2 {[%clk 0:02:36]}  b6 {[%clk 0:02:26]} 20. Nb5 {[%clk 0:02:31]}  Bxb5 {[%clk 0:02:22]} 21. cxb5 {[%clk 0:02:32]}  Nc5 {[%clk 0:02:22]} 22. b4 {[%clk 0:02:31]}  Bb2 {[%clk 0:02:13]} 23. Rc2 {[%clk 0:02:22]} 1-0


[Site "https://www.chess.com"]

[Event "Titled Tuesday Blitz March 22 Late 2022"]
[White "Antonio, Jorge Carlos"]
[Black "Baches Garcia, Guillermo"]
[WhiteFideId "113190"]
[BlackFideId "2209764"]
[WhiteElo "2247"]
[BlackElo "2467"]
[Result "0-1"]
[Round "04"]
[TimeControl "180+1"]
[Date "2022.03.22"]
[WhiteClock "0:01:33"]
[BlackClock "0:00:16"]

1. d4 {[%clk 0:03:00]}  Nf6 {[%clk 0:02:59]} 2. Nf3 {[%clk 0:03:00]}  e6 {[%clk 0:03:00]} 3. Bf4 {[%clk 0:02:59]}  d5 {[%clk 0:03:00]} 4. e3 {[%clk 0:02:59]}  c5 {[%clk 0:03:00]} 5. c3 {[%clk 0:02:59]}  Nc6 {[%clk 0:03:01]} 6. Bd3 {[%clk 0:02:59]}  Nh5 {[%clk 0:02:58]} 7. Bg3 {[%clk 0:02:58]}  Qb6 {[%clk 0:02:57]} 8. b3 {[%clk 0:02:52]}  Be7 {[%clk 0:02:43]} 9. Nbd2 {[%clk 0:02:50]}  Bd7 {[%clk 0:02:30]} 10. O-O {[%clk 0:02:48]}  Nxg3 {[%clk 0:02:29]} 11. hxg3 {[%clk 0:02:48]}  O-O {[%clk 0:02:29]} 12. Rc1 {[%clk 0:02:45]}  Rac8 {[%clk 0:02:16]} 13. Bb1 {[%clk 0:02:39]}  Qd8 {[%clk 0:02:07]} 14. Ne5 {[%clk 0:02:37]}  Nxe5 {[%clk 0:02:00]} 15. dxe5 {[%clk 0:02:36]}  f5 {[%clk 0:01:54]} 16. f4 {[%clk 0:02:35]}  d4 {[%clk 0:01:41]} 17. exd4 {[%clk 0:02:31]}  cxd4 {[%clk 0:01:42]} 18. cxd4 {[%clk 0:02:31]}  Rxc1 {[%clk 0:01:32]} 19. Qxc1 {[%clk 0:02:30]}  Bb5 {[%clk 0:01:32]} 20. Rd1 {[%clk 0:02:23]}  Qxd4+ {[%clk 0:01:31]} 21. Kh2 {[%clk 0:02:23]}  Rd8 {[%clk 0:01:23]} 22. a3 {[%clk 0:02:18]}  Be2 {[%clk 0:01:20]} 23. Rg1 {[%clk 0:02:05]}  Qxd2 {[%clk 0:01:17]} 24. Qc7 {[%clk 0:02:05]}  Qd7 {[%clk 0:00:55]} 25. Qc2 {[%clk 0:01:59]}  Bd3 {[%clk 0:00:50]} 26. Qc3 {[%clk 0:01:54]}  Bxb1 {[%clk 0:00:47]} 27. Rxb1 {[%clk 0:01:54]}  Qc6 {[%clk 0:00:46]} 28. Qe3 {[%clk 0:01:51]}  Bc5 {[%clk 0:00:44]} 29. Qe2 {[%clk 0:01:49]}  Qe4 {[%clk 0:00:43]} 30. Qb5 {[%clk 0:01:44]}  Qxb1 {[%clk 0:00:40]} 31. Qxc5 {[%clk 0:01:43]}  Qd3 {[%clk 0:00:35]} 32. Qe7 {[%clk 0:01:41]}  Qd7 {[%clk 0:00:32]} 33. Qb4 {[%clk 0:01:41]}  h6 {[%clk 0:00:32]} 34. Kh3 {[%clk 0:01:41]}  Kh7 {[%clk 0:00:32]} 35. g4 {[%clk 0:01:38]}  fxg4+ {[%clk 0:00:31]} 36. Kxg4 {[%clk 0:01:38]}  Qf7 {[%clk 0:00:30]} 37. g3 {[%clk 0:01:37]}  Qf5+ {[%clk 0:00:24]} 38. Kf3 {[%clk 0:01:37]}  Rd3+ {[%clk 0:00:24]} 39. Kf2 {[%clk 0:01:36]}  Rd5 {[%clk 0:00:20]} 40. Qxb7 {[%clk 0:01:34]}  Qc2+ {[%clk 0:00:18]} 41. Kf3 {[%clk 0:01:33]}  Qd1+ {[%clk 0:00:16]} 42. Kg2 {[%clk 0:01:33]}  Rd2+ {[%clk 0:00:16]} 43. Kh3 {[%clk 0:01:33]}  Qh5# {[%clk 0:00:16]} 0-1


[Site "https://www.chess.com"]

[Event "Titled Tuesday Blitz March 22 Late 2022"]
[White "Artemiev, Vladislav"]
[Black "Nazaretyan, Tigran"]
[WhiteFideId "24101605"]
[BlackFideId "24162345"]
[WhiteElo "2811"]
[BlackElo "2219"]
[Result "1-0"]
[Round "04"]
[TimeControl "180+1"]
[Date "2022.03.22"]
[WhiteClock "0:01:06"]
[BlackClock "0:01:24"]

1. d4 {[%clk 0:03:00]}  Nf6 {[%clk 0:02:58]} 2. Nf3 {[%clk 0:02:59]}  d6 {[%clk 0:02:57]} 3. Nc3 {[%clk 0:02:59]}  Nbd7 {[%clk 0:02:54]} 4. g3 {[%clk 0:02:51]}  e5 {[%clk 0:02:54]} 5. Bg2 {[%clk 0:02:47]}  c6 {[%clk 0:02:53]} 6. O-O {[%clk 0:02:44]}  e4 {[%clk 0:02:52]} 7. Nh4 {[%clk 0:02:42]}  d5 {[%clk 0:02:51]} 8. f3 {[%clk 0:02:41]}  exf3 {[%clk 0:02:43]} 9. Rxf3 {[%clk 0:02:34]}  Bb4 {[%clk 0:02:20]} 10. Re3+ {[%clk 0:02:19]}  Kf8 {[%clk 0:02:19]} 11. Rf3 {[%clk 0:02:09]}  h6 {[%clk 0:02:13]} 12. Qd3 {[%clk 0:01:42]}  c5 {[%clk 0:02:05]} 13. Nxd5 {[%clk 0:01:22]}  Nxd5 {[%clk 0:01:54]} 14. Rxf7+ {[%clk 0:01:22]}  Kxf7 {[%clk 0:01:41]} 15. Bxd5+ {[%clk 0:01:22]}  Ke7 {[%clk 0:01:39]} 16. Qe4+ {[%clk 0:01:14]}  Ne5 {[%clk 0:01:29]} 17. Qxe5+ {[%clk 0:01:05]}  Kd7 {[%clk 0:01:24]} 18. Qe6+ {[%clk 0:01:06]}  Kc7 {[%clk 0:01:24]} 19. Bf4+ {[%clk 0:01:06]} 1-0


[Site "https://www.chess.com"]

[Event "Titled Tuesday Blitz March 22 Late 2022"]
[White "Avazkhonov, Alikhon"]
[Black "Seul, Georg"]
[WhiteFideId "14208504"]
[BlackFideId "4601653"]
[WhiteElo "1739"]
[BlackElo "2271"]
[Result "1-0"]
[Round "04"]
[TimeControl "180+1"]
[Date "2022.03.22"]
[WhiteClock "0:00:05"]
[BlackClock "0:00:02"]

1. c4 {[%clk 0:03:00]}  e5 {[%clk 0:02:56]} 2. g3 {[%clk 0:03:00]}  d6 {[%clk 0:02:55]} 3. Bg2 {[%clk 0:03:01]}  f5 {[%clk 0:02:55]} 4. Nc3 {[%clk 0:02:59]}  Nf6 {[%clk 0:02:55]} 5. d3 {[%clk 0:02:59]}  Be7 {[%clk 0:02:55]} 6. e3 {[%clk 0:03:00]}  O-O {[%clk 0:02:55]} 7. Nge2 {[%clk 0:03:00]}  c6 {[%clk 0:02:55]} 8. O-O {[%clk 0:03:01]}  Na6 {[%clk 0:02:56]} 9. a3 {[%clk 0:02:54]}  Be6 {[%clk 0:02:55]} 10. b4 {[%clk 0:02:52]}  d5 {[%clk 0:02:55]} 11. b5 {[%clk 0:02:34]}  cxb5 {[%clk 0:02:51]} 12. cxb5 {[%clk 0:02:31]}  Nc7 {[%clk 0:02:51]} 13. d4 {[%clk 0:02:29]}  e4 {[%clk 0:02:50]} 14. a4 {[%clk 0:02:27]}  Qd7 {[%clk 0:02:40]} 15. Qb3 {[%clk 0:02:26]}  Bf7 {[%clk 0:02:32]} 16. Ba3 {[%clk 0:02:25]}  Bxa3 {[%clk 0:02:31]} 17. Rxa3 {[%clk 0:02:24]}  Ne6 {[%clk 0:02:31]} 18. Nf4 {[%clk 0:01:47]}  Nxf4 {[%clk 0:02:26]} 19. exf4 {[%clk 0:01:46]}  Rac8 {[%clk 0:02:21]} 20. Nd1 {[%clk 0:01:46]}  Rc4 {[%clk 0:02:21]} 21. Ne3 {[%clk 0:01:36]}  Rxd4 {[%clk 0:02:10]} 22. Qb2 {[%clk 0:01:36]}  Rd3 {[%clk 0:02:08]} 23. Rxd3 {[%clk 0:01:35]}  exd3 {[%clk 0:02:08]} 24. Rd1 {[%clk 0:01:35]}  Rc8 {[%clk 0:01:50]} 25. Rxd3 {[%clk 0:01:35]}  Qc7 {[%clk 0:01:50]} 26. Bxd5 {[%clk 0:01:16]}  Nxd5 {[%clk 0:01:42]} 27. Nxd5 {[%clk 0:01:17]}  Qc1+ {[%clk 0:01:20]} 28. Qxc1 {[%clk 0:01:06]}  Rxc1+ {[%clk 0:01:19]} 29. Kg2 {[%clk 0:01:07]}  Kf8 {[%clk 0:01:12]} 30. Ne3 {[%clk 0:00:37]}  Be6 {[%clk 0:01:12]} 31. Rd8+ {[%clk 0:00:30]}  Ke7 {[%clk 0:01:10]} 32. Ra8 {[%clk 0:00:30]}  Kd6 {[%clk 0:00:57]} 33. Rxa7 {[%clk 0:00:29]}  Rc7 {[%clk 0:00:57]} 34. a5 {[%clk 0:00:21]}  Bc8 {[%clk 0:00:43]} 35. a6 {[%clk 0:00:19]}  bxa6 {[%clk 0:00:31]} 36. Rxc7 {[%clk 0:00:18]}  Kxc7 {[%clk 0:00:31]} 37. bxa6 {[%clk 0:00:18]}  g6 {[%clk 0:00:25]} 38. Kh3 {[%clk 0:00:17]}  Bxa6 {[%clk 0:00:23]} 39. Kh4 {[%clk 0:00:17]}  h6 {[%clk 0:00:22]} 40. g4 {[%clk 0:00:14]}  fxg4 {[%clk 0:00:15]} 41. Nxg4 {[%clk 0:00:15]}  Kd6 {[%clk 0:00:12]} 42. Nxh6 {[%clk 0:00:14]}  Ke6 {[%clk 0:00:12]} 43. Kg5 {[%clk 0:00:15]}  Bd3 {[%clk 0:00:11]} 44. h4 {[%clk 0:00:15]}  Ke7 {[%clk 0:00:10]} 45. f5 {[%clk 0:00:11]}  gxf5 {[%clk 0:00:10]} 46. Nxf5+ {[%clk 0:00:12]}  Kf7 {[%clk 0:00:10]} 47. h5 {[%clk 0:00:12]}  Kg8 {[%clk 0:00:08]} 48. f4 {[%clk 0:00:11]}  Kh7 {[%clk 0:00:08]} 49. Ne7 {[%clk 0:00:08]}  Kg7 {[%clk 0:00:05]} 50. f5 {[%clk 0:00:07]}  Kf7 {[%clk 0:00:05]} 51. Ng6 {[%clk 0:00:07]}  Bc2 {[%clk 0:00:03]} 52. h6 {[%clk 0:00:07]}  Kg8 {[%clk 0:00:02]} 53. Ne5 {[%clk 0:00:05]} 1-0


[Site "https://www.chess.com"]

[Event "Titled Tuesday Blitz March 22 Late 2022"]
[White "Barp, Alberto"]
[Black "Andreikin, Dmitry"]
[WhiteFideId "872555"]
[BlackFideId "4158814"]
[WhiteElo "2229"]
[BlackElo "2736"]
[Result "0-1"]
[Round "04"]
[TimeControl "180+1"]
[Date "2022.03.22"]
[WhiteClock "0:00:01"]
[BlackClock "0:01:47"]

1. d4 {[%clk 0:02:58]}  Nf6 {[%clk 0:02:59]} 2. c4 {[%clk 0:02:57]}  e6 {[%clk 0:02:59]} 3. Nf3 {[%clk 0:02:57]}  b6 {[%clk 0:02:56]} 4. g3 {[%clk 0:02:57]}  Bb7 {[%clk 0:02:57]} 5. Bg2 {[%clk 0:02:57]}  c5 {[%clk 0:02:57]} 6. d5 {[%clk 0:02:56]}  exd5 {[%clk 0:02:57]} 7. Nh4 {[%clk 0:02:55]}  g6 {[%clk 0:02:56]} 8. Nc3 {[%clk 0:02:51]}  Bg7 {[%clk 0:02:56]} 9. Bg5 {[%clk 0:02:50]}  O-O {[%clk 0:02:47]} 10. O-O {[%clk 0:02:45]}  Na6 {[%clk 0:02:46]} 11. Nxd5 {[%clk 0:02:32]}  Bxd5 {[%clk 0:02:43]} 12. Bxd5 {[%clk 0:02:31]}  Rb8 {[%clk 0:02:43]} 13. Bg2 {[%clk 0:02:24]}  Nc7 {[%clk 0:02:43]} 14. Bf4 {[%clk 0:02:14]}  Re8 {[%clk 0:02:36]} 15. Qa4 {[%clk 0:02:04]}  Nh5 {[%clk 0:02:25]} 16. Bc1 {[%clk 0:01:49]}  Rxe2 {[%clk 0:02:20]} 17. Qxa7 {[%clk 0:01:42]}  Ne6 {[%clk 0:02:15]} 18. Nf3 {[%clk 0:01:39]}  Nd4 {[%clk 0:02:07]} 19. Bg5 {[%clk 0:01:29]}  Qe8 {[%clk 0:02:07]} 20. Nxd4 {[%clk 0:01:24]}  Bxd4 {[%clk 0:02:08]} 21. Bf3 {[%clk 0:01:22]}  Rxb2 {[%clk 0:02:07]} 22. Bxh5 {[%clk 0:00:51]}  gxh5 {[%clk 0:02:08]} 23. Rad1 {[%clk 0:00:32]}  Rc8 {[%clk 0:02:05]} 24. Qb7 {[%clk 0:00:31]}  Rc6 {[%clk 0:02:04]} 25. Bf4 {[%clk 0:00:20]}  h6 {[%clk 0:02:02]} 26. h3 {[%clk 0:00:20]}  Re6 {[%clk 0:01:51]} 27. Qf3 {[%clk 0:00:19]}  Ree2 {[%clk 0:01:49]} 28. Rxd4 {[%clk 0:00:11]}  cxd4 {[%clk 0:01:50]} 29. Qxh5 {[%clk 0:00:10]}  Qe6 {[%clk 0:01:51]} 30. Bxh6 {[%clk 0:00:06]}  Qg6 {[%clk 0:01:51]} 31. Qxg6+ {[%clk 0:00:04]}  fxg6 {[%clk 0:01:50]} 32. Bf4 {[%clk 0:00:03]}  d3 {[%clk 0:01:50]} 33. Rd1 {[%clk 0:00:03]}  Rxf2 {[%clk 0:01:48]} 34. Rxd3 {[%clk 0:00:03]}  Rfc2 {[%clk 0:01:49]} 35. Rd1 {[%clk 0:00:03]}  Rxa2 {[%clk 0:01:49]} 36. h4 {[%clk 0:00:01]}  Rxc4 {[%clk 0:01:47]} 0-1


[Site "https://www.chess.com"]

[Event "Titled Tuesday Blitz March 22 Late 2022"]
[White "Bashirli, Nail"]
[Black "Fernandez Siles, Luis"]
[WhiteFideId "13406809"]
[BlackFideId "2209420"]
[WhiteElo "2333"]
[BlackElo "2212"]
[Result "1-0"]
[Round "04"]
[TimeControl "180+1"]
[Date "2022.03.22"]
[WhiteClock "0:00:20"]
[BlackClock "0:00:22"]

1. e4 {[%clk 0:02:59]}  c5 {[%clk 0:02:58]} 2. Nc3 {[%clk 0:02:57]}  Nc6 {[%clk 0:02:58]} 3. Bb5 {[%clk 0:02:57]}  Nd4 {[%clk 0:02:57]} 4. Nf3 {[%clk 0:02:57]}  g6 {[%clk 0:02:56]} 5. O-O {[%clk 0:02:56]}  Bg7 {[%clk 0:02:56]} 6. Nxd4 {[%clk 0:02:56]}  cxd4 {[%clk 0:02:56]} 7. Ne2 {[%clk 0:02:57]}  Nf6 {[%clk 0:02:50]} 8. d3 {[%clk 0:02:52]}  Qb6 {[%clk 0:02:49]} 9. Bc4 {[%clk 0:02:51]}  d6 {[%clk 0:02:46]} 10. h3 {[%clk 0:02:46]}  O-O {[%clk 0:02:45]} 11. Kh1 {[%clk 0:02:43]}  Qc5 {[%clk 0:02:30]} 12. Bb3 {[%clk 0:02:10]}  a5 {[%clk 0:02:06]} 13. a3 {[%clk 0:01:29]}  a4 {[%clk 0:02:04]} 14. Ba2 {[%clk 0:01:14]}  Qh5 {[%clk 0:02:04]} 15. Nxd4 {[%clk 0:00:55]}  Bxh3 {[%clk 0:02:02]} 16. Qxh5 {[%clk 0:00:54]}  Nxh5 {[%clk 0:02:02]} 17. Nb5 {[%clk 0:00:41]}  Be6 {[%clk 0:01:58]} 18. Bxe6 {[%clk 0:00:35]}  fxe6 {[%clk 0:01:57]} 19. Be3 {[%clk 0:00:35]}  Bxb2 {[%clk 0:01:46]} 20. Rab1 {[%clk 0:00:33]}  Be5 {[%clk 0:01:47]} 21. Nc7 {[%clk 0:00:33]}  Rac8 {[%clk 0:01:44]} 22. Rxb7 {[%clk 0:00:33]}  Rfd8 {[%clk 0:01:36]} 23. Nxe6 {[%clk 0:00:31]}  Re8 {[%clk 0:01:32]} 24. c4 {[%clk 0:00:31]}  Kf7 {[%clk 0:01:24]} 25. Ng5+ {[%clk 0:00:28]}  Kg8 {[%clk 0:01:23]} 26. g3 {[%clk 0:00:19]}  Bf6 {[%clk 0:01:03]} 27. Kg2 {[%clk 0:00:18]}  Ng7 {[%clk 0:01:01]} 28. Nf3 {[%clk 0:00:17]}  Ne6 {[%clk 0:01:01]} 29. Rfb1 {[%clk 0:00:18]}  Nd8 {[%clk 0:01:01]} 30. Ra7 {[%clk 0:00:17]}  Nc6 {[%clk 0:01:01]} 31. Rxa4 {[%clk 0:00:18]}  Ne5 {[%clk 0:01:01]} 32. Nxe5 {[%clk 0:00:17]}  Bxe5 {[%clk 0:01:02]} 33. Rb7 {[%clk 0:00:16]}  Ra8 {[%clk 0:00:59]} 34. Raa7 {[%clk 0:00:16]}  Rxa7 {[%clk 0:00:59]} 35. Bxa7 {[%clk 0:00:17]}  Kf7 {[%clk 0:00:58]} 36. a4 {[%clk 0:00:17]}  Bc3 {[%clk 0:00:56]} 37. Rb3 {[%clk 0:00:16]}  Ba5 {[%clk 0:00:55]} 38. Rb5 {[%clk 0:00:16]}  Bc3 {[%clk 0:00:55]} 39. a5 {[%clk 0:00:17]}  Ra8 {[%clk 0:00:55]} 40. Bb6 {[%clk 0:00:18]}  Ke6 {[%clk 0:00:55]} 41. f4 {[%clk 0:00:18]}  h5 {[%clk 0:00:55]} 42. Kh3 {[%clk 0:00:18]}  Be1 {[%clk 0:00:51]} 43. g4 {[%clk 0:00:17]}  hxg4+ {[%clk 0:00:51]} 44. Kxg4 {[%clk 0:00:18]}  Kd7 {[%clk 0:00:49]} 45. Rg5 {[%clk 0:00:18]}  Kc6 {[%clk 0:00:48]} 46. Rxg6 {[%clk 0:00:18]}  Bxa5 {[%clk 0:00:48]} 47. Bxa5 {[%clk 0:00:17]}  Rxa5 {[%clk 0:00:49]} 48. Kf3 {[%clk 0:00:17]}  Kd7 {[%clk 0:00:48]} 49. Ke3 {[%clk 0:00:18]}  Ra1 {[%clk 0:00:47]} 50. Rg2 {[%clk 0:00:18]}  Re1+ {[%clk 0:00:47]} 51. Kd4 {[%clk 0:00:18]}  Rh1 {[%clk 0:00:46]} 52. f5 {[%clk 0:00:19]}  Rh5 {[%clk 0:00:45]} 53. Ra2 {[%clk 0:00:19]}  Ke8 {[%clk 0:00:43]} 54. Ra7 {[%clk 0:00:19]}  Rh3 {[%clk 0:00:43]} 55. Kc3 {[%clk 0:00:17]}  Rh1 {[%clk 0:00:42]} 56. Ra6 {[%clk 0:00:17]}  Kd7 {[%clk 0:00:42]} 57. Kd4 {[%clk 0:00:16]}  Rh3 {[%clk 0:00:41]} 58. Ra7+ {[%clk 0:00:16]}  Ke8 {[%clk 0:00:41]} 59. Ra5 {[%clk 0:00:16]}  Kd7 {[%clk 0:00:41]} 60. c5 {[%clk 0:00:16]}  dxc5+ {[%clk 0:00:40]} 61. Rxc5 {[%clk 0:00:17]}  Kd6 {[%clk 0:00:40]} 62. Rd5+ {[%clk 0:00:17]}  Kc6 {[%clk 0:00:40]} 63. Ke5 {[%clk 0:00:18]}  Rh6 {[%clk 0:00:38]} 64. d4 {[%clk 0:00:18]}  Kc7 {[%clk 0:00:35]} 65. Rc5+ {[%clk 0:00:19]}  Kd7 {[%clk 0:00:34]} 66. d5 {[%clk 0:00:19]}  Ra6 {[%clk 0:00:33]} 67. Rb5 {[%clk 0:00:19]}  Ra7 {[%clk 0:00:33]} 68. Rb6 {[%clk 0:00:19]}  Kc7 {[%clk 0:00:32]} 69. Rh6 {[%clk 0:00:19]}  Kd7 {[%clk 0:00:33]} 70. f6 {[%clk 0:00:20]}  exf6+ {[%clk 0:00:33]} 71. Rxf6 {[%clk 0:00:20]}  Ke7 {[%clk 0:00:33]} 72. Rh6 {[%clk 0:00:20]}  Ra5 {[%clk 0:00:34]} 73. Rh7+ {[%clk 0:00:20]}  Kf8 {[%clk 0:00:33]} 74. Kf5 {[%clk 0:00:20]}  Ra1 {[%clk 0:00:32]} 75. e5 {[%clk 0:00:20]}  Kg8 {[%clk 0:00:32]} 76. Rc7 {[%clk 0:00:19]}  Kf8 {[%clk 0:00:32]} 77. d6 {[%clk 0:00:20]}  Ke8 {[%clk 0:00:32]} 78. Rh7 {[%clk 0:00:20]}  Rf1+ {[%clk 0:00:27]} 79. Ke6 {[%clk 0:00:20]}  Rg1 {[%clk 0:00:22]} 80. Rh8+ {[%clk 0:00:20]} 1-0


[Site "https://www.chess.com"]